bitfinex/quotes_ETHUSD_20230116
["timestamp","ask_amount","ask_price","bid_price","bid_amount"]
[1673829048625,0.0202922,1546.5,1546.4,23.38018303]
[1673829048828,0.0202922,1546.5,1546.4,21.93054912]
[1673829049599,0.0202922,1546.5,1546.4,23.38000541]
[1673829050129,0.0202922,1546.5,1546.4,25.06422855]
[1673829050614,0.0202922,1546.5,1546.4,21.93054912]
[1673829051541,0.0202922,1546.5,1546.4,13.74691912]
[1673829051755,0.0202922,1546.5,1546.4,4.502]
[1673829052912,0.0202922,1546.5,1546.4,11.19863]
[1673829053156,0.0202922,1546.5,1546.4,12.69863]
[1673829053367,0.0202922,1546.5,1546.4,14.14758952]
[1673829053590,0.0202922,1546.5,1546.4,14.14822105]
[1673829053765,0.0202922,1546.5,1546.4,17.12329353]
[1673829053986,0.0202922,1546.5,1546.4,23.58992353]
[1673829054178,0.0202922,1546.5,1546.4,26.24138527]
[1673829054386,0.0202922,1546.5,1546.4,27.74338527]
[1673829054704,0.05218897,1546.6,1546.5,1.50554863]
[1673829054918,0.05218897,1546.6,1546.5,25.03045307]
[1673829055796,0.05218897,1546.6,1546.5,25.21472622]
[1673829055977,0.05218897,1546.6,1546.5,20.59286202]
[1673829057902,0.05218897,1546.6,1546.5,25.21552121]
[1673829058309,0.05218897,1546.6,1546.5,25.21552198]
[1673829058522,0.05218897,1546.6,1546.5,23.53060351]
[1673829058848,0.05218897,1546.6,1546.5,25.21526128]
[1673829059092,0.05218897,1546.6,1546.5,23.53049864]
[1673829059394,0.05218897,1546.6,1546.5,19.08086202]
[1673829059550,0.05218897,1546.6,1546.5,14.06484335]
[1673829059765,0.05218897,1546.6,1546.5,11.11465202]
[1673829059972,0.05218897,1546.6,1546.5,19.03105506]
[1673829060285,0.05218897,1546.6,1546.5,22.03105506]
[1673829060495,0.05539148,1546.7,1546.6,1.52138393]
[1673829060722,0.05539148,1546.7,1546.6,7.10862783]
[1673829061171,0.05539148,1546.7,1546.6,20.04020783]
[1673829061342,0.05539148,1546.7,1546.6,21.48820736]
[1673829062511,0.05539148,1546.7,1546.6,22.13454654]
[1673829062920,0.04224458,1546.8,1546.7,3.26845465]
[1673829063126,0.06117016,1547.1,1546.9,0.008]
[1673829063339,0.06117016,1547.1,1547.0,20.35591835]
[1673829063576,0.06117016,1547.1,1547.0,35.02947629]
[1673829063790,0.06117016,1547.1,1547.0,34.11046729]
[1673829064009,0.06117016,1547.1,1547.0,33.63641598]
[1673829064284,0.06117016,1547.1,1547.0,36.66031926]
[1673829064493,0.06342321,1547.3,1547.0,44.80987191]
[1673829064709,10.49612097,1547.9,1547.3,0.08330851]
[1673829064710,0.06822097,1547.9,1547.3,0.08330851]
[1673829064919,2.321e-05,1547.4,1547.3,17.75600265]
[1673829065163,2.321e-05,1547.4,1547.3,21.31575556]
[1673829065391,2.321e-05,1547.4,1547.3,20.9997112]
[1673829065606,2.321e-05,1547.4,1547.3,22.91478354]
[1673829065790,2.321e-05,1547.4,1547.3,20.52378261]
[1673829066005,0.06822097,1547.9,1547.4,1.50197679]
[1673829066349,0.06822097,1547.9,1547.8,1.502]
[1673829066652,0.06822097,1547.9,1547.8,6.234]
[1673829066878,0.06822097,1547.9,1547.8,6.88033918]
[1673829067061,0.06822097,1547.9,1547.8,19.15556]
[1673829067446,0.06822097,1547.9,1547.8,17.65356]
[1673829067705,0.06822097,1547.9,1547.8,19.717616]
[1673829067922,0.06822097,1547.9,1547.8,13.256836]
[1673829068073,0.06822097,1547.9,1547.8,11.754836]
[1673829068281,0.06822097,1547.9,1547.8,0.23]
[1673829069241,0.06822097,1547.9,1547.7,0.23]
[1673829069562,0.06822097,1547.9,1547.7,6.69093]
[1673829071906,0.06822097,1547.9,1547.7,0.23]
[1673829072221,3.0,1547.8,1547.4,0.00197679]
[1673829072430,0.4848,1547.7,1547.4,0.00197679]
[1673829072797,1.9848,1547.7,1547.4,0.00197679]
[1673829073043,0.4848,1547.7,1547.4,0.00197679]
[1673829073578,0.4848,1547.7,1547.4,3.00197679]
[1673829073784,0.4848,1547.7,1547.4,3.95676332]
[1673829074322,3.0,1547.8,1547.5,1.502]
[1673829074474,3.0,1547.8,1547.6,1.502]
[1673829074890,3.4848,1547.8,1547.7,0.23]
[1673829075331,3.4848,1547.8,1547.4,3.00197679]
[1673829075525,16.40646,1547.8,1547.4,3.00197679]
[1673829075736,1.5,1547.7,1547.4,0.00197679]
[1673829075996,13.40646,1547.8,1547.4,0.00197679]
[1673829076204,3.0,1547.6,1547.4,0.00197679]
[1673829076796,9.9117,1547.6,1547.4,0.00197679]
[1673829077144,0.4849,1547.5,1547.4,0.00197679]
[1673829077680,3.0,1547.7,1547.4,0.00197679]
[1673829077681,0.4848,1547.6,1547.4,0.00197679]
[1673829077896,19.7279,1547.8,1547.4,0.00197679]
[1673829077897,0.4848,1547.8,1547.5,1.502]
[1673829078072,14.07242097,1547.9,1547.4,0.64831597]
[1673829078281,14.07242097,1547.9,1547.7,1.502]
[1673829078492,3.06822097,1547.9,1547.8,0.23]
[1673829079373,3.06822097,1547.9,1547.7,0.23]
[1673829080681,0.06822097,1547.9,1547.7,0.23]
[1673829080919,0.06822097,1547.9,1547.7,1.732]
[1673829081129,0.06822097,1547.9,1547.7,4.732]
[1673829081307,0.06822097,1547.9,1547.8,0.4732]
[1673829081636,0.06822097,1547.9,1547.7,4.732]
[1673829081637,0.74722097,1547.9,1547.7,3.0]
[1673829081846,3.74722097,1547.9,1547.3,4.496]
[1673829082081,10.20759097,1547.9,1547.3,4.496]
[1673829082435,3.74722097,1547.9,1547.3,4.496]
[1673829082644,14.22802097,1547.9,1547.4,0.4496]
[1673829082863,20.68838097,1547.9,1547.5,0.23]
[1673829083041,3.0,1547.7,1547.2,10.5274]
[1673829083379,6.94654,1547.6,1547.2,1.20294]
[1673829083595,3.0,1547.5,1547.0,12.39033918]
[1673829083754,3.0,1547.5,1547.0,2.14333918]
[1673829084857,3.0,1547.5,1547.0,5.14333918]
[1673829085083,3.0,1547.5,1547.0,18.07141918]
[1673829085534,3.0,1547.5,1547.1,0.23]
[1673829085745,3.0,1547.5,1547.1,2.06014192]
[1673829085974,3.0,1547.5,1547.1,5.06014192]
[1673829086322,3.0,1547.5,1547.1,11.52375192]
[1673829087602,3.0,1547.3,1547.1,5.06014192]
[1673829087909,3.0,1547.3,1547.1,0.23]
[1673829089177,3.0,1547.3,1547.1,3.23]
[1673829089484,3.0,1547.3,1547.1,16.80360918]
[1673829090809,3.0,1547.3,1547.1,16.15727]
[1673829091041,3.0,1547.3,1547.2,1.615727]
[1673829091216,3.0,1547.3,1547.2,1.845727]
[1673829092119,3.0,1547.5,1547.2,1.84867099]
[1673829092264,2.99769858,1547.5,1547.3,0.23]
[1673829093155,10.4808,1547.6,1547.3,3.23]
[1673829093369,10.4808,1547.6,1547.5,1.324]
[1673829093537,21.76459858,1547.7,1547.5,1.554]
[1673829093755,21.76459858,1547.7,1547.5,1.324]
[1673829093977,21.76459858,1547.7,1547.6,0.23]
[1673829094171,2.99769858,1547.7,1547.6,0.23]
[1673829094523,2.99769858,1547.7,1547.6,1.031571]
[1673829095955,31.02162097,1547.9,1547.6,1.031571]
[1673829096273,31.02162097,1547.9,1547.6,2.363571]
[1673829096274,13.55501955,1547.9,1547.6,2.363571]
[1673829096739,13.55501955,1547.9,1547.6,5.363571]
[1673829097335,0.06822097,1547.9,1547.7,1.324]
[1673829097699,0.06822097,1547.9,1547.8,1.6324]
[1673829098643,0.06822097,1547.9,1547.8,17.55396]
[1673829098953,0.06822097,1547.9,1547.8,18.88596]
[1673829099537,0.06822097,1547.9,1547.8,19.11596]
[1673829100814,0.06822097,1547.9,1547.8,20.66359806]
[1673829101049,0.06822097,1547.9,1547.8,21.30993724]
[1673829101370,0.0100853,1548.1,1547.9,0.03209244]
[1673829101541,0.0100853,1548.1,1548.0,1.332]
[1673829101733,0.0100853,1548.1,1548.0,4.332]
[1673829101944,0.0100853,1548.1,1548.0,3.23]
[1673829102945,0.0100853,1548.1,1548.0,9.68994]
[1673829105747,0.0100853,1548.1,1548.0,0.23]
[1673829105969,0.6890853,1548.1,1547.9,0.03209244]
[1673829106332,0.0100853,1548.1,1547.9,0.03209244]
[1673829106677,0.0100853,1548.1,1547.9,0.68137968]
[1673829107308,0.0100853,1548.1,1548.0,0.23]
[1673829109513,0.6890853,1548.1,1548.0,0.23]
[1673829110156,0.6890853,1548.1,1547.9,0.26209244]
[1673829110417,2.99769858,1548.0,1547.9,0.26209244]
[1673829110878,2.99769858,1548.0,1547.9,0.03209244]
[1673829113565,2.99769858,1548.0,1547.9,6.49245244]
[1673829113779,2.99769858,1548.0,1547.9,8.04074068]
[1673829113989,2.99769858,1548.0,1547.9,0.26209244]
[1673829114154,2.99769858,1548.0,1547.9,0.03209244]
[1673829118946,2.99769858,1548.0,1547.9,6.49245244]
[1673829119153,2.99769858,1548.0,1547.9,6.72245244]
[1673829120181,2.99769858,1548.0,1547.9,0.26209244]
[1673829120942,2.99769858,1548.0,1547.9,0.03209244]
[1673829125296,3.64991372,1548.0,1547.9,0.03209244]
[1673829128190,5.14891372,1548.0,1547.9,0.03209244]
[1673829128398,19.59107761,1548.0,1547.9,0.0290038]
[1673829128553,20.21856812,1548.0,1547.9,0.0290038]
[1673829129613,11.63213761,1548.0,1547.9,0.0290038]
[1673829129817,5.09205391,1548.0,1547.9,0.0290038]
[1673829130153,4.13461372,1548.0,1547.9,0.0290038]
[1673829130359,3.64991372,1548.0,1547.9,0.0290038]
[1673829134262,3.64991372,1548.0,1547.9,0.70095618]
[1673829134512,3.64991372,1548.0,1547.9,0.93095618]
[1673829134942,3.64991372,1548.0,1547.9,2.48815885]
[1673829135889,3.64991372,1548.0,1547.9,2.48851109]
[1673829136275,3.64991372,1548.0,1547.9,3.44896145]
[1673829136480,3.64991372,1548.0,1547.9,4.94196145]
[1673829136481,0.65221514,1548.0,1547.9,4.94196145]
[1673829136732,0.65221514,1548.0,1547.9,14.73581212]
[1673829136954,0.00198516,1548.0,1547.9,14.73686969]
[1673829137144,0.0100853,1548.1,1548.0,0.00111262]
[1673829137369,0.0100853,1548.1,1548.0,11.34500931]
[1673829137370,0.00751104,1548.1,1548.0,11.34500931]
[1673829137596,0.00751104,1548.1,1548.0,14.34500931]
[1673829137974,0.00751104,1548.1,1548.0,12.42993697]
[1673829138917,4.09726198,1548.4,1548.1,1.5]
[1673829139279,4.09726198,1548.4,1548.3,2.991]
[1673829139470,4.09726198,1548.4,1548.3,3.04855491]
[1673829139685,4.09726198,1548.4,1548.3,6.27855491]
[1673829140281,4.09726198,1548.4,1548.3,4.721]
[1673829140837,4.09726198,1548.4,1548.3,17.63838]
[1673829141164,4.09726198,1548.4,1548.3,11.467528]
[1673829142379,4.09726198,1548.4,1548.3,12.960528]
[1673829143361,4.09726198,1548.4,1548.3,19.419218]
[1673829145212,4.09726198,1548.4,1548.3,12.960528]
[1673829145471,4.09726198,1548.4,1548.3,3.23]
[1673829146375,4.09726198,1548.4,1548.3,16.14738]
[1673829149193,4.09726198,1548.4,1548.3,17.64638]
[1673829151041,4.09726198,1548.4,1548.3,9.68869]
[1673829151251,4.09726198,1548.4,1548.1,3.0]
[1673829151720,2.99769858,1548.2,1548.0,6.46071262]
[1673829152036,2.99769858,1548.2,1548.0,0.00111262]
[1673829153815,9.45690858,1548.2,1548.0,0.00111262]
[1673829154128,8.44423,1548.1,1548.0,0.00111262]
[1673829154375,1.9847,1548.1,1548.0,0.00111262]
[1673829154707,0.4847,1548.1,1548.0,0.00111262]
[1673829155143,11.1051,1548.1,1548.0,0.00111262]
[1673829155772,0.4847,1548.1,1548.0,0.00111262]
[1673829159811,13.35509858,1548.2,1548.0,0.00111262]
[1673829159959,13.35509858,1548.2,1548.0,13.30280426]
[1673829160171,13.35509858,1548.2,1548.0,6.84286426]
[1673829160701,2.99769858,1548.2,1548.0,6.84286426]
[1673829161343,2.99769858,1548.2,1548.0,8.33586426]
[1673829161647,2.99769858,1548.2,1548.1,0.83358643]
[1673829161889,2.99769858,1548.2,1548.1,1.06358643]
[1673829162906,22.2659,1548.3,1548.1,13.98264643]
[1673829163120,22.2659,1548.3,1548.2,0.23]
[1673829163750,14.99256198,1548.4,1548.2,0.23]
[1673829163964,14.99256198,1548.4,1548.2,1.62826464]
[1673829164332,4.58186198,1548.4,1548.2,1.62826464]
[1673829166515,4.58186198,1548.4,1548.2,8.08737464]
[1673829168305,4.09726198,1548.4,1548.2,1.62826464]
[1673829171370,4.09726198,1548.4,1548.2,1.62619402]
[1673829172473,4.09726198,1548.4,1548.2,0.22792938]
[1673829172693,4.09726198,1548.4,1548.2,1.72692938]
[1673829173167,4.09726198,1548.4,1548.2,14.64513938]
[1673829173484,4.09726198,1548.4,1548.2,0.22792938]
[1673829173634,4.09726198,1548.4,1548.0,1.6140917]
[1673829173846,9.45722858,1548.1,1548.0,0.00111262]
[1673829174061,9.94192858,1548.1,1548.0,0.00111262]
[1673829174298,3.48239858,1548.1,1548.0,0.00111262]
[1673829174510,2.99769858,1548.1,1548.0,0.00111262]
[1673829175746,10.95722858,1548.1,1548.0,0.00111262]
[1673829176205,9.45722858,1548.1,1548.0,0.00111262]
[1673829176414,2.99769858,1548.1,1548.0,0.00111262]
[1673829178368,9.45722858,1548.1,1548.0,0.00111262]
[1673829178572,18.37219877,1548.1,1548.0,0.00111262]
[1673829178830,18.85689877,1548.1,1548.0,0.00111262]
[1673829179050,19.32725071,1548.1,1548.0,0.00111262]
[1673829180310,17.82925071,1548.1,1548.0,0.00111262]
[1673829181489,17.35889877,1548.1,1548.0,0.00111262]
[1673829181832,19.26520774,1548.1,1548.0,0.00111262]
[1673829182307,19.80676755,1548.1,1548.0,0.00111262]
[1673829182620,20.76757106,1548.1,1548.0,0.00111262]
[1673829183002,16.87756209,1548.1,1548.0,0.00111262]
[1673829183212,10.41803209,1548.1,1548.0,0.00111262]
[1673829183428,9.94192858,1548.1,1548.0,0.00111262]
[1673829183852,9.45722858,1548.1,1548.0,0.00111262]
[1673829184194,2.99769858,1548.1,1548.0,0.00111262]
[1673829185433,2.99481866,1548.1,1548.0,0.00111262]
[1673829185775,2.99481866,1548.1,1548.0,0.17702426]
[1673829186351,2.94481866,1548.1,1548.0,0.40702426]
[1673829189137,34.53781866,1548.2,1548.0,2.00944132]
[1673829189315,34.53781866,1548.2,1548.0,0.40702426]
[1673829190055,2.94481866,1548.2,1548.0,0.40702426]
[1673829192068,2.94481866,1548.2,1548.0,0.40591164]
[1673829193028,1.0995634,1548.4,1548.1,1.493]
[1673829193246,1.0995634,1548.4,1548.3,1.493]
[1673829193404,1.0995634,1548.4,1548.3,1.723]
[1673829193818,1.0995634,1548.4,1548.3,0.23]
[1673829194292,1.0995634,1548.4,1548.3,0.18]
[1673829194507,1.0995634,1548.4,1548.3,1.158816]
[1673829196923,1.0995634,1548.4,1548.3,2.76097415]
[1673829197142,1.0995634,1548.4,1548.3,7.24597415]
[1673829197373,1.0995634,1548.4,1548.3,9.70561405]
[1673829197669,1.0995634,1548.4,1548.3,11.85195323]
[1673829197822,1.0995634,1548.4,1548.3,10.35195323]
[1673829199095,1.0995634,1548.4,1548.3,23.26933323]
[1673829199306,1.0995634,1548.4,1548.3,20.29133323]
[1673829199651,1.0995634,1548.4,1548.3,12.21966415]
[1673829200047,1.0995634,1548.4,1548.3,14.67730405]
[1673829200514,1.0995634,1548.4,1548.3,24.0849539]
[1673829200688,2.98867721,1548.7,1548.5,2.02208861]
[1673829200689,0.04385855,1548.7,1548.5,2.02208861]
[1673829200878,0.04385855,1548.7,1548.6,4.17956665]
[1673829201089,0.04385855,1548.7,1548.6,9.38771367]
[1673829201617,0.04385855,1548.7,1548.6,7.78555552]
[1673829201821,0.04385855,1548.7,1548.6,4.80155552]
[1673829202036,2.98867721,1548.7,1548.5,2.02208861]
[1673829202839,2.98867721,1548.7,1548.5,14.93780861]
[1673829203190,2.98867721,1548.7,1548.5,16.42880861]
[1673829203869,2.98867721,1548.7,1548.6,0.23]
[1673829204101,2.98867721,1548.7,1548.6,6.68744]
[1673829204310,0.04385855,1548.7,1548.6,8.99906486]
[1673829205448,0.04385855,1548.7,1548.6,15.45650486]
[1673829206819,0.04385855,1548.7,1548.6,18.45650486]
[1673829207007,0.04385855,1548.7,1548.6,20.60184404]
[1673829207227,0.04385855,1548.7,1548.6,19.95550486]
[1673829207393,0.04385855,1548.7,1548.6,20.60184404]
[1673829208657,0.04385855,1548.7,1548.6,12.64540404]
[1673829208885,0.04385855,1548.7,1548.6,0.23]
[1673829209190,2.98867721,1548.7,1548.6,0.23]
[1673829210556,2.98867721,1548.7,1548.6,6.68744]
[1673829212017,0.04385855,1548.7,1548.6,6.68744]
[1673829212225,0.04385855,1548.7,1548.6,11.81877918]
[1673829212433,0.04385855,1548.7,1548.6,15.99527873]
[1673829213022,0.72285855,1548.7,1548.6,2.67649955]
[1673829213191,2.98867721,1548.7,1548.5,8.48835631]
[1673829213608,0.04385855,1548.7,1548.5,9.98135631]
[1673829213836,0.04385855,1548.7,1548.5,10.62769549]
[1673829214046,0.04385855,1548.7,1548.5,17.08555549]
[1673829214747,0.04385855,1548.7,1548.6,0.23]
[1673829214957,0.04385855,1548.7,1548.6,1.96155555]
[1673829216381,0.04385855,1548.7,1548.6,14.87643555]
[1673829217234,0.04385855,1548.7,1548.6,17.87643555]
[1673829218648,2.98867721,1548.7,1548.5,2.03083631]
[1673829218866,2.98867721,1548.7,1548.5,5.03083631]
[1673829219229,2.98867721,1548.7,1548.5,2.03083631]
[1673829219957,0.4845,1548.6,1548.5,2.03083631]
[1673829220129,3.47317721,1548.7,1548.5,2.03083631]
[1673829221495,3.47317721,1548.7,1548.5,2.54638148]
[1673829221703,3.47317721,1548.7,1548.5,9.00422148]
[1673829221918,3.47317721,1548.7,1548.5,2.54638148]
[1673829222109,3.47317721,1548.7,1548.5,2.03083631]
[1673829224143,0.04385855,1548.7,1548.5,6.52983631]
[1673829224353,2.98867721,1548.7,1548.6,6.68744]
[1673829225321,2.98560374,1548.7,1548.6,0.23]
[1673829225684,2.98560374,1548.7,1548.5,2.03083631]
[1673829229150,2.98560374,1548.7,1548.5,2.02824967]
[1673829229366,2.98560374,1548.7,1548.6,0.23]
[1673829231165,2.98560374,1548.7,1548.6,6.68744]
[1673829232987,0.04078508,1548.7,1548.6,8.28921281]
[1673829233206,0.04078508,1548.7,1548.6,10.74477946]
[1673829233514,0.04078508,1548.7,1548.6,12.91384959]
[1673829234035,0.04078508,1548.7,1548.6,19.37128959]
[1673829234630,0.04078508,1548.7,1548.6,23.01762877]
[1673829234851,0.04078508,1548.7,1548.6,24.46658627]
[1673829235290,0.04078508,1548.7,1548.6,24.9864121]
[1673829237274,0.04078508,1548.7,1548.6,18.2989721]
[1673829237459,0.04078508,1548.7,1548.6,16.8089721]
[1673829238721,0.04078508,1548.7,1548.6,17.0389721]
[1673829238929,0.04078508,1548.7,1548.6,18.00524921]
[1673829239140,0.04078508,1548.7,1548.6,12.9018291]
[1673829239619,0.71978508,1548.7,1548.6,6.2143891]
[1673829239768,3.66460374,1548.7,1548.5,2.02824967]
[1673829240289,2.98560374,1548.7,1548.5,2.02824967]
[1673829240752,2.98560374,1548.7,1548.5,2.99452678]
[1673829241140,2.98560374,1548.7,1548.6,1.60188659]
[1673829241651,2.98560374,1548.7,1548.5,2.99452678]
[1673829242106,2.98560374,1548.7,1548.5,2.02824967]
[1673829243048,9.92719374,1548.7,1548.5,2.02824967]
[1673829245279,17.34508725,1548.7,1548.5,2.02824967]
[1673829245496,19.07428753,1548.7,1548.5,2.02824967]
[1673829245665,13.87568351,1548.6,1548.5,2.02824967]
[1673829245874,14.36018351,1548.6,1548.5,2.02824967]
[1673829246865,14.36018351,1548.6,1548.5,1.97824967]
[1673829248172,13.39938,1548.6,1548.5,1.97824967]
[1673829250921,0.4845,1548.6,1548.5,1.97824967]
[1673829253571,3.47010374,1548.7,1548.5,1.97824967]
[1673829253797,3.47010374,1548.7,1548.6,0.19782497]
[1673829254010,2.98560374,1548.7,1548.6,0.19782497]
[1673829254847,2.98560374,1548.7,1548.5,1.97824967]
[1673829255247,9.44267374,1548.7,1548.5,1.97824967]
[1673829255456,10.40347725,1548.7,1548.5,1.97824967]
[1673829255674,9.44267374,1548.7,1548.5,1.97824967]
[1673829256182,10.40347725,1548.7,1548.5,1.97824967]
[1673829256387,9.44267374,1548.7,1548.5,1.97824967]
[1673829259547,2.98560374,1548.7,1548.5,1.97824967]
[1673829262597,2.98560374,1548.7,1548.5,8.43600967]
[1673829264409,2.98560374,1548.7,1548.5,9.93500967]
[1673829266947,2.98560374,1548.7,1548.5,1.97824967]
[1673829271643,2.98334239,1548.7,1548.5,1.97824967]
[1673829272330,2.93334239,1548.7,1548.5,1.97824967]
[1673829273553,21.34335855,1548.8,1548.6,1.60184918]
[1673829273707,0.04385855,1548.8,1548.7,1.72]
[1673829273917,0.04385855,1548.8,1548.7,3.96818836]
[1673829274135,0.04385855,1548.8,1548.7,9.46530573]
[1673829274745,0.04385855,1548.8,1548.7,0.64633918]
[1673829275062,0.72285855,1548.8,1548.5,4.97824967]
[1673829275276,0.72285855,1548.8,1548.5,1.97824967]
[1673829275484,0.04385855,1548.8,1548.5,1.97824967]
[1673829275976,0.04385855,1548.8,1548.5,3.46824967]
[1673829276172,0.04385855,1548.8,1548.6,6.67161194]
[1673829276487,0.04385855,1548.8,1548.6,11.52712497]
[1673829276925,0.04385855,1548.8,1548.7,1.499]
[1673829277143,0.04385855,1548.8,1548.7,3.33070928]
[1673829277327,0.04385855,1548.8,1548.7,9.78772928]
[1673829277544,0.04385855,1548.8,1548.7,10.66574529]
[1673829277756,0.04385855,1548.8,1548.7,12.26745378]
[1673829278084,0.04385855,1548.8,1548.7,12.26747606]
[1673829278252,0.04385855,1548.8,1548.7,4.20872529]
[1673829278919,0.04385855,1548.8,1548.7,2.70972529]
[1673829279263,0.04385855,1548.8,1548.7,4.31145953]
[1673829279629,0.04385855,1548.8,1548.7,2.70972529]
[1673829280084,0.04385855,1548.8,1548.7,16.23369916]
[1673829280250,0.04385855,1548.8,1548.7,16.88003834]
[1673829280721,0.04385855,1548.8,1548.7,18.32838832]
[1673829280933,0.04385855,1548.8,1548.7,16.88003834]
[1673829281145,0.07646118,1549.1,1548.7,30.13505834]
[1673829281462,0.07646118,1549.1,1549.0,0.96383804]
[1673829281617,0.07646118,1549.1,1549.0,5.64018802]
[1673829281831,0.07646118,1549.1,1549.0,10.88820396]
[1673829282042,0.07646118,1549.1,1549.0,25.29974396]
[1673829282514,0.07646118,1549.1,1549.0,22.35139398]
[1673829282725,0.07646118,1549.1,1549.0,25.07438171]
[1673829283414,0.06995308,1549.4,1549.1,1.63453415]
[1673829283580,0.68773595,1549.6,1549.5,1.56135394]
[1673829283735,0.68773595,1549.6,1549.5,3.06035394]
[1673829283949,0.68773595,1549.6,1549.5,3.59638933]
[1673829284374,0.68773595,1549.6,1549.5,10.05007933]
[1673829284698,0.68773595,1549.6,1549.5,1.79135394]
[1673829286301,0.68773595,1549.6,1549.5,8.42669312]
[1673829286468,0.68773595,1549.6,1549.5,9.92669312]
[1673829286688,0.68773595,1549.6,1549.5,8.42669312]
[1673829286893,0.68773595,1549.6,1549.5,14.88038312]
[1673829287124,0.68773595,1549.6,1549.5,17.65918043]
[1673829288186,0.63773595,1549.6,1549.5,24.11287043]
[1673829288373,0.63773595,1549.6,1549.5,8.19669312]
[1673829288586,0.63773595,1549.6,1549.5,1.56135394]
[1673829290251,0.63773595,1549.6,1549.5,1.79135394]
[1673829291616,0.63773595,1549.6,1549.5,1.56135394]
[1673829292094,14.02847595,1549.6,1549.5,1.56135394]
[1673829292308,1.12193595,1549.6,1549.5,1.56135394]
[1673829294187,15.52747595,1549.6,1549.5,1.56135394]
[1673829295249,1.12193595,1549.6,1549.5,1.56135394]
[1673829295927,0.63773595,1549.6,1549.5,1.79135394]
[1673829302173,0.63773595,1549.6,1549.5,0.23]
[1673829302380,0.63773595,1549.6,1549.4,0.23]
[1673829302596,0.63773595,1549.6,1549.4,1.54386]
[1673829303591,2.93334239,1549.5,1549.4,1.54386]
[1673829303748,1.2256083,1549.5,1549.4,1.54386]
[1673829304380,1.86334425,1549.6,1549.4,1.54386]
[1673829304590,0.36766257,1549.5,1549.4,1.54386]
[1673829305483,0.36766257,1549.5,1549.4,14.45208]
[1673829305638,0.36766257,1549.5,1549.4,15.94008]
[1673829305853,0.36766257,1549.5,1549.4,16.58641918]
[1673829306709,0.36766257,1549.5,1549.4,19.58641918]
[1673829307161,0.63773595,1549.6,1549.5,4.21165355]
[1673829307342,0.63773595,1549.6,1549.5,10.43965355]
[1673829307556,0.63773595,1549.6,1549.5,12.68657924]
[1673829307904,0.63773595,1549.6,1549.5,23.99337273]
[1673829308864,0.63773595,1549.6,1549.5,20.99437273]
[1673829309010,0.63773595,1549.6,1549.5,12.81168273]
[1673829309222,0.63773595,1549.6,1549.5,12.16534355]
[1673829309763,0.63773595,1549.6,1549.5,14.31068273]
[1673829310179,0.63773595,1549.6,1549.5,20.76437273]
[1673829310392,0.63773595,1549.6,1549.5,7.21065355]
[1673829311654,0.63773595,1549.6,1549.5,20.11803355]
[1673829311893,0.63773595,1549.6,1549.5,20.34803355]
[1673829312263,0.63773595,1549.6,1549.5,13.89434355]
[1673829312955,0.63773595,1549.6,1549.5,20.34803355]
[1673829314078,0.63773595,1549.6,1549.5,2.94165355]
[1673829314438,0.63773595,1549.6,1549.5,0.75301163]
[1673829316806,0.63773595,1549.6,1549.5,0.98301163]
[1673829317021,7.09100595,1549.6,1549.5,0.75301163]
[1673829321322,13.54427595,1549.6,1549.5,0.75301163]
[1673829322513,7.09100595,1549.6,1549.5,0.75301163]
[1673829322853,0.63773595,1549.6,1549.5,0.75301163]
[1673829324485,7.09100595,1549.6,1549.5,0.75301163]
[1673829326841,7.09100595,1549.6,1549.5,0.76175933]
[1673829328739,13.54427595,1549.6,1549.5,0.76175933]
[1673829329371,17.42821443,1549.6,1549.5,0.76175933]
[1673829329523,16.95161092,1549.6,1549.5,0.76175933]
[1673829330832,27.27321092,1549.6,1549.5,0.76175933]
[1673829331013,28.23539139,1549.6,1549.5,0.76175933]
[1673829331219,27.27321092,1549.6,1549.5,0.75881046]
[1673829332051,16.95161092,1549.6,1549.5,0.75881046]
[1673829332268,16.47768121,1549.6,1549.5,0.75881046]
[1673829332582,14.99068121,1549.6,1549.5,0.75881046]
[1673829332819,25.31228121,1549.6,1549.5,0.75881046]
[1673829333413,18.30196637,1549.6,1549.5,0.75881046]
[1673829334098,28.48836637,1549.6,1549.5,0.75881046]
[1673829334617,18.30196637,1549.6,1549.5,0.75881046]
[1673829335617,28.48836637,1549.6,1549.5,0.75881046]
[1673829336293,18.30196637,1549.6,1549.5,0.75881046]
[1673829336712,18.30192923,1549.6,1549.5,0.75881046]
[1673829336909,27.65866111,1549.6,1549.5,0.75881046]
[1673829337665,18.30162409,1549.6,1549.5,0.75881046]
[1673829338282,28.62052409,1549.6,1549.5,0.75881046]
[1673829338631,27.18438912,1549.6,1549.5,0.75881046]
[1673829338826,14.40562614,1549.6,1549.5,0.75881046]
[1673829339227,16.28915666,1549.6,1549.5,0.75881046]
[1673829339400,15.36748912,1549.6,1549.5,0.75881046]
[1673829341250,14.40562614,1549.6,1549.5,0.75881046]
[1673829342042,14.40562614,1549.6,1549.5,1.046e-05]
[1673829342237,39.78526111,1549.6,1549.5,1.046e-05]
[1673829343608,40.7465582,1549.6,1549.5,1.046e-05]
[1673829344977,39.31042323,1549.6,1549.5,1.046e-05]
[1673829345183,38.82622323,1549.6,1549.5,1.046e-05]
[1673829345848,39.30106111,1549.6,1549.5,1.046e-05]
[1673829346179,37.33660892,1549.6,1549.5,1.046e-05]
[1673829346372,36.37592614,1549.6,1549.5,1.046e-05]
[1673829347809,23.46938614,1549.6,1549.5,1.046e-05]
[1673829348336,29.92265614,1549.6,1549.5,1.046e-05]
[1673829349613,23.46938614,1549.6,1549.5,1.046e-05]
[1673829349841,1.01488614,1549.6,1549.5,0.14982004]
[1673829352351,1.01488614,1549.6,1549.5,0.37982004]
[1673829356021,1e-08,1549.6,1549.5,0.37982004]
[1673829356216,1e-08,1549.6,1549.5,1.98077687]
[1673829356432,1.2256083,1549.7,1549.5,1.98077687]
[1673829356636,1.2256083,1549.7,1549.6,0.19807769]
[1673829356846,1.2256083,1549.7,1549.5,0.37982004]
[1673829359741,7.6784683,1549.7,1549.5,0.37982004]
[1673829359953,15.09201108,1549.7,1549.5,1.046e-05]
[1673829360104,17.01234605,1549.7,1549.5,1.046e-05]
[1673829361202,13.86722278,1549.6,1549.5,1.046e-05]
[1673829362990,12.90654,1549.6,1549.5,1.046e-05]
[1673829366020,6.45327,1549.6,1549.5,1.046e-05]
[1673829366434,7.6784683,1549.7,1549.5,1.046e-05]
[1673829369485,7.6784683,1549.7,1549.5,1.60095735]
[1673829369690,7.6784683,1549.7,1549.5,1.046e-05]
[1673829370159,7.6284683,1549.7,1549.5,1.046e-05]
[1673829370345,7.6284683,1549.7,1549.5,0.12002382]
[1673829370564,1.1756083,1549.7,1549.6,1.60081361]
[1673829370777,2.2751717,1549.9,1549.6,3.32981361]
[1673829371092,2.2751717,1549.9,1549.6,1.499]
[1673829371322,2.2751717,1549.9,1549.7,1.60072228]